[Event "Championnat du monde jeunes U12F"]
[Date "2024.11.22"]
[White "Ejsymont, Blanka"]
[Black "Zavivaeva, Kristina"]
[WhiteElo "1945"]
[BlackElo "1775"]
[Round "7.7"]
[Result "0-1"]
[TimeControl "5400+30"]

1. e4 {[%clk 1:30:59]} 1... c5 {[%clk 1:30:55]} 2. Nf3 {[%clk 1:31:25]} 2... e6
{[%clk 1:31:14]} 3. d4 {[%clk 1:31:41]} 3... cxd4 {[%clk 1:31:40]} 4. Nxd4
{[%clk 1:32:06]} 4... a6 {[%clk 1:31:50]} 5. a3 {[%clk 1:23:04]} 5... Qc7 {[%clk
1:28:50]} 6. c4 {[%clk 1:22:07]} 6... Nf6 {[%clk 1:28:48]} 7. Nc3 {[%clk
1:19:58]} 7... Be7 {[%clk 1:28:21]} 8. Bd3 {[%clk 1:19:44]} 8... b6 {[%clk
1:26:46]} 9. Qe2 {[%clk 1:07:05]} 9... d6 {[%clk 1:25:29]} 10. O-O {[%clk
1:04:53]} 10... O-O {[%clk 1:25:28]} 11. f4 {[%clk 1:01:04]} 11... Nbd7 {[%clk
1:25:16]} 12. Bd2 {[%clk 0:57:02]} 12... Bb7 {[%clk 1:23:49]} 13. b4 {[%clk
0:54:35]} 13... Rfe8 {[%clk 1:21:48]} 14. Nc2 {[%clk 0:47:31]} 14... a5 {[%clk
1:16:16]} 15. Nb5 {[%clk 0:45:55]} 15... Qb8 {[%clk 1:15:31]} 16. Rae1 {[%clk
0:41:56]} 16... e5 {[%clk 1:13:36]} 17. f5 {[%clk 0:41:33]} 17... axb4 {[%clk
1:12:03]} 18. axb4 {[%clk 0:40:39]} 18... Ba6 {[%clk 1:09:10]} 19. Nc3 {[%clk
0:38:11]} 19... Rc8 {[%clk 1:07:16]} 20. g4 {[%clk 0:31:06]} 20... h6 {[%clk
1:02:57]} 21. Kg2 {[%clk 0:27:16]} 21... Qc7 {[%clk 1:01:23]} 22. Ne3 {[%clk
0:26:19]} 22... Bb7 {[%clk 0:58:24]} 23. h4 {[%clk 0:25:08]} 23... d5 {[%clk
0:53:16]} 24. cxd5 {[%clk 0:16:11]} 24... Bxb4 {[%clk 0:51:00]} 25. Rc1 {[%clk
0:14:34]} 25... Qd8 {[%clk 0:49:39]} 26. Rh1 {[%clk 0:12:43]} 26... Nc5 {[%clk
0:46:59]} 27. g5 {[%clk 0:08:00]} 27... Bxc3 {[%clk 0:45:31]} 28. gxf6 {[%clk
0:05:39]} 28... Bxd2 {[%clk 0:45:09]} 29. Qxd2 {[%clk 0:05:43]} 29... Qxf6
{[%clk 0:44:09]} 30. Ng4 {[%clk 0:05:45]} 30... Qd6 {[%clk 0:44:05]} 31. f6
{[%clk 0:05:09]} 31... Nxd3 {[%clk 0:42:54]} 32. Rxc8+ {[%clk 0:01:42]} 32...
Bxc8 {[%clk 0:43:18]} 33. Nxh6+ {[%clk 0:00:43]} 33... gxh6 {[%clk 0:41:54]} 34.
Qxh6 {[%clk 0:01:07]} 34... Nf4+ {[%clk 0:42:15]} 35. Kf1 {[%clk 0:00:34]} 35...
Ra1+ {[%clk 0:42:32]} 36. Kf2 {[%clk 0:00:35]} 36... Qc5+ {[%clk 0:42:57]} 37.
Kg3 {[%clk 0:00:34]} 37... Qe3+ {[%clk 0:43:20]} 38. Kh2 {[%clk 0:00:57]} 38...
Qh3# {[%clk 0:43:42]} 0-1

[Variant "Standard"]
[Site "Europe Echecs"]

[Event "Championnat du monde jeunes U12F"]
[Date "2024.11.22"]
[White "Hanya Shah"]
[Black "Tu, Audrey"]
[WhiteElo "1888"]
[BlackElo "1765"]
[Round "7.8"]
[Result "1-0"]
[TimeControl "5400+30"]

1. c4 {[%clk 1:30:57]} 1... c5 {[%clk 1:30:57]} 2. Nc3 {[%clk 1:31:21]} 2... g6
{[%clk 1:31:13]} 3. g3 {[%clk 1:31:45]} 3... Nc6 {[%clk 1:31:39]} 4. Bg2 {[%clk
1:32:11]} 4... Bg7 {[%clk 1:32:03]} 5. Nf3 {[%clk 1:32:35]} 5... e5 {[%clk
1:32:22]} 6. d3 {[%clk 1:32:37]} 6... Nge7 {[%clk 1:32:08]} 7. e4 {[%clk
1:32:48]} 7... d6 {[%clk 1:31:04]} 8. Be3 {[%clk 1:31:01]} 8... O-O {[%clk
1:21:59]} 9. O-O {[%clk 1:31:15]} 9... f5 {[%clk 1:16:20]} 10. Qd2 {[%clk
1:24:31]} 10... f4 {[%clk 0:59:48]} 11. gxf4 {[%clk 1:22:48]} 11... Nd4 {[%clk
0:57:37]} 12. Ne1 {[%clk 1:16:17]} 12... Nec6 {[%clk 0:53:07]} 13. f3 Qh4 14.
fxe5 {[%clk 0:56:24]} 14... dxe5 {[%clk 0:34:31]} 15. Nd5 {[%clk 0:48:54]} 15...
Bh3 {[%clk 0:31:22]} 16. Kh1 {[%clk 0:33:55]} 16... Ne6 {[%clk 0:25:39]} 17. Qf2
{[%clk 0:32:01]} 17... Bxg2+ {[%clk 0:22:33]} 18. Nxg2 {[%clk 0:27:09]} 18...
Qxf2 {[%clk 0:21:47]} 19. Rxf2 {[%clk 0:27:21]} 19... Ncd4 {[%clk 0:20:31]} 20.
Raf1 {[%clk 0:22:56]} 20... b6 {[%clk 0:16:02]} 21. f4 {[%clk 0:14:48]} 21...
exf4 {[%clk 0:14:10]} 22. Ngxf4 {[%clk 0:14:55]} 22... Nxf4 {[%clk 0:13:30]} 23.
Rxf4 {[%clk 0:11:42]} 23... Bh6 {[%clk 0:11:08]} 24. Rxf8+ {[%clk 0:10:43]}
24... Rxf8 {[%clk 0:10:52]} 25. Ne7+ {[%clk 0:07:58]} 25... Kh8 {[%clk 0:10:13]}
26. Bxd4+ {[%clk 0:07:37]} 26... cxd4 {[%clk 0:10:28]} 27. Rxf8+ {[%clk
0:07:39]} 27... Bxf8 {[%clk 0:10:48]} 28. Nc6 {[%clk 0:07:36]} 28... a5 {[%clk
0:08:11]} 29. b3 {[%clk 0:06:46]} 29... Bg7 {[%clk 0:07:15]} 30. Kg2 {[%clk
0:06:27]} 30... Kg8 {[%clk 0:07:11]} 31. Kf3 {[%clk 0:06:47]} 31... Kf7 {[%clk
0:07:03]} 32. e5 {[%clk 0:07:03]} 32... Ke6 {[%clk 0:05:37]} 33. Ke4 {[%clk
0:07:27]} 33... h5 {[%clk 0:03:12]} 34. Nxd4+ {[%clk 0:07:45]} 34... Ke7 {[%clk
0:02:50]} 35. Kd5 {[%clk 0:08:05]} 35... h4 {[%clk 0:02:18]} 36. Nf3 {[%clk
0:07:54]} 36... h3 {[%clk 0:01:20]} 37. Ng5 {[%clk 0:08:18]} 37... Bh6 {[%clk
0:01:03]} 38. Nxh3 {[%clk 0:08:42]} 38... Be3 {[%clk 0:01:14]} 39. Ke4 {[%clk
0:08:51]} 39... Bc1 {[%clk 0:01:04]} 40. Nf4 {[%clk 0:09:11]} 40... g5 {[%clk
0:00:51]} 41. Nd5+ {[%clk 0:09:25]} 41... Ke6 {[%clk 0:01:15]} 42. h3 {[%clk
0:09:20]} 42... Bb2 {[%clk 0:01:23]} 43. d4 {[%clk 0:09:40]} 43... Ba3 {[%clk
0:00:48]} 44. Nxb6 {[%clk 0:09:43]} 44... Be7 {[%clk 0:00:56]} 45. d5+ {[%clk
0:09:58]} 45... Kf7 {[%clk 0:00:58]} 46. Kf5 {[%clk 0:10:01]} 46... Bd8 {[%clk
0:01:11]} 47. e6+ {[%clk 0:10:14]} 47... Ke8 {[%clk 0:00:58]} 48. Nc8 {[%clk
0:10:27]} 48... Bc7 {[%clk 0:00:37]} 49. d6 {[%clk 0:10:43]} 49... Bxd6 {[%clk
0:00:40]} 50. Nxd6+ {[%clk 0:11:04]} 50... Ke7 {[%clk 0:01:03]} 51. Nb7 {[%clk
0:10:58]} 51... a4 {[%clk 0:01:18]} 52. bxa4 {[%clk 0:11:12]} 52... Ke8 {[%clk
0:01:12]} 53. a5 {[%clk 0:11:32]} 53... g4 {[%clk 0:01:22]} 54. hxg4 {[%clk
0:11:56]} 54... Ke7 {[%clk 0:01:47]} 55. a6 {[%clk 0:12:14]} 55... Ke8 {[%clk
0:01:58]} 56. a7 {[%clk 0:12:33]} 56... Ke7 {[%clk 0:02:16]} 57. g5 {[%clk
0:12:53]} 57... Ke8 {[%clk 0:02:35]} 58. a8=Q+ {[%clk 0:13:06]} 58... Ke7 {[%clk
0:02:57]} 59. Qd8# {[%clk 0:13:30]} 1-0

[Variant "Standard"]
[Site "Europe Echecs"]

[Event "Championnat du monde jeunes U12F"]
[Date "2024.11.22"]
[White "Aadya Ranganath"]
[Black "Xu, Luna Yuexiu"]
[WhiteElo "1753"]
[BlackElo "1821"]
[Round "7.9"]
[Result "1-0"]
[TimeControl "5400+30"]

1. e4 {[%clk 1:30:57]} 1... c5 {[%clk 1:30:47]} 2. Nf3 {[%clk 1:31:20]} 2... d6
{[%clk 1:31:01]} 3. d4 {[%clk 1:31:45]} 3... cxd4 {[%clk 1:31:24]} 4. Nxd4
{[%clk 1:32:09]} 4... Nf6 {[%clk 1:31:45]} 5. Nc3 {[%clk 1:32:34]} 5... a6
{[%clk 1:32:01]} 6. Bd3 {[%clk 1:32:56]} 6... e5 {[%clk 1:32:06]} 7. Nde2 {[%clk
1:33:15]} 7... Be7 {[%clk 1:32:12]} 8. O-O {[%clk 1:33:31]} 8... O-O {[%clk
1:32:04]} 9. Ng3 {[%clk 1:33:48]} 9... Be6 {[%clk 1:31:54]} 10. Nd5 {[%clk
1:33:30]} 10... Bxd5 {[%clk 1:31:29]} 11. exd5 {[%clk 1:33:51]} 11... Nbd7
{[%clk 1:31:01]} 12. c4 {[%clk 1:32:39]} 12... Qc7 {[%clk 1:28:10]} 13. b3
{[%clk 1:28:28]} 13... Rfe8 {[%clk 1:25:27]} 14. f4 {[%clk 1:24:09]} 14... exf4
{[%clk 1:22:37]} 15. Bxf4 {[%clk 1:23:55]} 15... Ne5 {[%clk 1:14:04]} 16. Nf5
{[%clk 1:12:04]} 16... Bf8 {[%clk 1:06:40]} 17. Rc1 {[%clk 1:07:06]} 17... g6
{[%clk 1:01:14]} 18. Ng3 {[%clk 1:02:31]} 18... Qc5+ {[%clk 0:51:21]} 19. Kh1
{[%clk 1:02:30]} 19... Bg7 {[%clk 0:45:55]} 20. h3 {[%clk 0:58:47]} 20... h5
{[%clk 0:44:29]} 21. Ne4 {[%clk 0:49:53]} 21... Nxe4 {[%clk 0:38:10]} 22. Bxe4
{[%clk 0:50:10]} 22... Nd7 {[%clk 0:24:09]} 23. Qf3 {[%clk 0:43:02]} 23... f5
{[%clk 0:20:24]} 24. Bb1 {[%clk 0:37:06]} 24... Ne5 {[%clk 0:19:55]} 25. Qg3
{[%clk 0:34:46]} 25... Kh7 {[%clk 0:20:00]} 26. Be3 {[%clk 0:30:12]} 26... Qc7
{[%clk 0:19:55]} 27. c5 {[%clk 0:28:12]} 27... Rac8 {[%clk 0:19:33]} 28. b4
{[%clk 0:25:53]} 28... Qd7 {[%clk 0:19:23]} 29. Rcd1 {[%clk 0:21:10]} 29... Nc4
{[%clk 0:17:42]} 30. Bd4 {[%clk 0:18:11]} 30... Bxd4 {[%clk 0:16:08]} 31. Rxd4
{[%clk 0:18:36]} 31... Ne3 {[%clk 0:16:32]} 32. Rc1 {[%clk 0:16:43]} 32... dxc5
{[%clk 0:16:31]} 33. bxc5 {[%clk 0:16:51]} 33... Nxd5 {[%clk 0:15:43]} 34. a3
{[%clk 0:14:07]} 34... Qc6 {[%clk 0:14:52]} 35. Rcd1 {[%clk 0:13:33]} 35... Ne7
{[%clk 0:07:27]} 36. Rc1 {[%clk 0:12:58]} 36... Rcd8 {[%clk 0:07:00]} 37. Rxd8
{[%clk 0:11:02]} 37... Rxd8 {[%clk 0:07:25]} 38. Qg5 {[%clk 0:10:49]} 38... Rd7
{[%clk 0:07:03]} 39. Ba2 {[%clk 0:08:58]} 39... Nd5 {[%clk 0:06:04]} 40. Rd1
{[%clk 0:08:31]} 40... Nc3 {[%clk 0:05:39]} 41. Rxd7+ {[%clk 0:08:37]} 41...
Qxd7 {[%clk 0:06:05]} 42. Bg8+ {[%clk 0:08:02]} 42... Kg7 {[%clk 0:05:24]} 43.
Bb3 {[%clk 0:07:39]} 43... Ne4 {[%clk 0:05:28]} 44. Qf4 {[%clk 0:07:31]} 44...
Qe7 {[%clk 0:05:25]} 45. Bd5 {[%clk 0:07:23]} 45... Nxc5 {[%clk 0:04:44]} 46.
Qd4+ {[%clk 0:07:18]} 46... Kh7 {[%clk 0:04:56]} 47. Qb4 {[%clk 0:07:24]} 47...
b6 {[%clk 0:04:31]} 48. Bf3 {[%clk 0:05:45]} 48... Qd6 {[%clk 0:03:20]} 49. Qc4
{[%clk 0:05:13]} 49... b5 {[%clk 0:02:31]} 50. Qf7+ {[%clk 0:04:26]} 50... Kh6
{[%clk 0:02:42]} 51. Qa7 {[%clk 0:04:15]} 51... Nd3 {[%clk 0:02:29]} 52. Qe3+
{[%clk 0:04:37]} 52... f4 {[%clk 0:02:26]} 53. Qe8 {[%clk 0:03:47]} 53... Ne5
{[%clk 0:01:12]} 54. Be4 {[%clk 0:03:02]} 54... Kg5 {[%clk 0:00:54]} 55. Bb7
{[%clk 0:02:11]} 55... Nc4 {[%clk 0:00:39]} 56. Qe4 {[%clk 0:02:06]} 56... Qxa3
{[%clk 0:00:39]} 57. h4+ {[%clk 0:02:21]} 57... Kf6 {[%clk 0:00:43]} 58. Qxf4+
{[%clk 0:02:42]} 58... Ke6 {[%clk 0:00:59]} 59. Bc8+ {[%clk 0:02:24]} 59... Kd5
{[%clk 0:00:55]} 60. Qg5+ {[%clk 0:02:15]} 60... Kc6 {[%clk 0:00:45]} 61. Qxg6+
{[%clk 0:02:08]} 61... Nd6 {[%clk 0:00:49]} 62. Qc2+ {[%clk 0:01:55]} 62... Kb6
{[%clk 0:00:57]} 63. Bd7 {[%clk 0:01:52]} 63... Qa1+ {[%clk 0:01:09]} 64. Kh2
{[%clk 0:02:16]} 64... Qe5+ {[%clk 0:01:29]} 65. g3 {[%clk 0:01:53]} 65... a5
{[%clk 0:01:24]} 66. Qc6+ {[%clk 0:02:02]} 66... Ka7 {[%clk 0:01:39]} 67. Qc7+
{[%clk 0:02:23]} 67... Ka6 {[%clk 0:01:39]} 68. Bc8+ {[%clk 0:02:48]} 68... Nxc8
{[%clk 0:02:01]} 69. Qxe5 {[%clk 0:03:15]} 69... a4 {[%clk 0:02:17]} 70. Qc3
{[%clk 0:03:19]} 70... Nb6 {[%clk 0:02:32]} 71. Kh3 {[%clk 0:03:36]} 71... Nd5
{[%clk 0:02:53]} 72. Qd4 {[%clk 0:03:50]} 72... Nb6 {[%clk 0:03:13]} 73. g4
{[%clk 0:04:06]} 73... hxg4+ {[%clk 0:03:36]} 74. Kxg4 {[%clk 0:04:31]} 74...
Ka5 {[%clk 0:03:49]} 75. h5 {[%clk 0:04:50]} 75... a3 {[%clk 0:04:05]} 76. h6
{[%clk 0:05:12]} 76... b4 {[%clk 0:04:19]} 77. h7 {[%clk 0:05:31]} 77... b3
{[%clk 0:04:39]} 78. h8=Q {[%clk 0:05:56]} 78... b2 {[%clk 0:04:54]} 79. Qh5+
{[%clk 0:06:11]} 79... Ka6 {[%clk 0:05:11]} 80. Qd3+ {[%clk 0:06:35]} 80... Kb7
{[%clk 0:05:25]} 81. Qhb5 {[%clk 0:07:00]} 81... a2 {[%clk 0:05:46]} 82. Qxb2
{[%clk 0:07:13]} 82... Ka7 {[%clk 0:05:51]} 83. Qxa2+ {[%clk 0:07:23]} 83... Kb7
{[%clk 0:06:16]} 84. Qab3 1-0

[Variant "Standard"]
[Site "Europe Echecs"]

[Event "Championnat du monde jeunes U12F"]
[Date "2024.11.22"]
[White "Abak, Tuana"]
[Black "Sabou, Stefania Theodora"]
[WhiteElo "1806"]
[BlackElo "1736"]
[Round "7.10"]
[Result "1-0"]
[TimeControl "5400+30"]

1. e4 {[%clk 1:30:58]} 1... c5 {[%clk 1:30:52]} 2. c3 {[%clk 1:31:25]} 2... Nf6
{[%clk 1:31:16]} 3. e5 {[%clk 1:31:51]} 3... Nd5 {[%clk 1:31:41]} 4. Nf3 {[%clk
1:32:18]} 4... Nc6 {[%clk 1:32:02]} 5. Bc4 {[%clk 1:32:42]} 5... Nb6 {[%clk
1:32:24]} 6. Bb3 {[%clk 1:33:07]} 6... d5 {[%clk 1:32:42]} 7. exd6 {[%clk
1:32:01]} 7... Qxd6 {[%clk 1:33:01]} 8. O-O {[%clk 1:29:56]} 8... Be6 {[%clk
1:33:03]} 9. Bxe6 {[%clk 1:30:21]} 9... Qxe6 {[%clk 1:33:26]} 10. d4 {[%clk
1:30:21]} 10... cxd4 {[%clk 1:32:38]} 11. cxd4 {[%clk 1:30:31]} 11... Qd7 {[%clk
1:31:30]} 12. Nc3 {[%clk 1:30:05]} 12... e6 {[%clk 1:31:47]} 13. Be3 {[%clk
1:24:35]} 13... Bb4 {[%clk 1:29:15]} 14. Qe2 {[%clk 1:23:40]} 14... O-O {[%clk
1:28:28]} 15. Rfd1 {[%clk 1:23:51]} 15... Bxc3 {[%clk 1:25:30]} 16. bxc3 {[%clk
1:24:12]} 16... Qd5 {[%clk 1:25:48]} 17. Rac1 {[%clk 1:22:48]} 17... Nc4 {[%clk
1:23:51]} 18. Rb1 {[%clk 1:17:23]} 18... N6a5 {[%clk 1:22:26]} 19. Ne5 {[%clk
1:09:18]} 19... Rac8 {[%clk 1:15:16]} 20. a4 {[%clk 0:48:19]} 20... a6 {[%clk
1:01:03]} 21. f4 {[%clk 0:45:38]} 21... Qe4 {[%clk 0:57:55]} 22. Rd3 {[%clk
0:41:38]} 22... Nxe5 {[%clk 0:50:34]} 23. fxe5 {[%clk 0:41:52]} 23... Rxc3
{[%clk 0:50:13]} 24. Rxc3 {[%clk 0:42:20]} 24... Qxb1+ {[%clk 0:50:35]} 25. Rc1
{[%clk 0:42:45]} 25... Qe4 {[%clk 0:50:27]} 26. Qf2 {[%clk 0:34:45]} 26... Nc6
{[%clk 0:49:21]} 27. Rf1 {[%clk 0:29:25]} 27... Nb4 {[%clk 0:42:25]} 28. Kh1
{[%clk 0:23:46]} 28... f5 {[%clk 0:34:08]} 29. Bg5 {[%clk 0:19:37]} 29... Rc8
{[%clk 0:32:04]} 30. h4 {[%clk 0:15:58]} 30... Rc2 {[%clk 0:30:16]} 31. Qg3
{[%clk 0:16:06]} 31... Qg4 {[%clk 0:28:42]} 32. Qxg4 {[%clk 0:16:32]} 32... fxg4
{[%clk 0:29:09]} 33. Be7 {[%clk 0:16:57]} 33... h5 {[%clk 0:28:33]} 34. Bxb4
{[%clk 0:16:43]} 34... Rc4 {[%clk 0:29:00]} 35. Bc5 {[%clk 0:17:02]} 35... Rxa4
{[%clk 0:29:25]} 36. Rf8+ {[%clk 0:17:24]} 36... Kh7 {[%clk 0:29:48]} 37. Re8
{[%clk 0:17:49]} 37... g3 {[%clk 0:29:46]} 38. d5 {[%clk 0:18:16]} 38... Ra1+
{[%clk 0:29:31]} 39. Bg1 {[%clk 0:18:43]} 39... exd5 {[%clk 0:30:00]} 40. Rd8
{[%clk 0:18:05]} 40... Re1 {[%clk 0:29:50]} 41. Rxd5 {[%clk 0:18:26]} 41... b5
{[%clk 0:30:17]} 42. Rd3 {[%clk 0:17:09]} 42... b4 {[%clk 0:29:02]} 43. Re3
{[%clk 0:13:55]} 43... Rxe3 44. Bxe3 {[%clk 0:14:23]} 44... b3 {[%clk 0:28:46]}
45. Bd4 {[%clk 0:14:39]} 45... a5 {[%clk 0:29:09]} 46. Kg1 {[%clk 0:14:57]}
46... a4 {[%clk 0:29:37]} 47. Bb2 {[%clk 0:15:26]} 47... Kg6 {[%clk 0:29:48]}
48. e6 {[%clk 0:15:26]} 48... a3 {[%clk 0:29:49]} 49. Bxa3 {[%clk 0:15:51]}
49... Kf6 {[%clk 0:30:13]} 50. e7 {[%clk 0:16:12]} 50... Kf7 {[%clk 0:30:40]}
51. Kf1 {[%clk 0:16:36]} 51... b2 {[%clk 0:31:10]} 52. Bxb2 {[%clk 0:17:05]}
52... Kxe7 {[%clk 0:31:35]} 53. Bxg7 {[%clk 0:17:24]} 53... Ke6 {[%clk 0:31:57]}
54. Ke2 {[%clk 0:17:50]} 54... Kf5 {[%clk 0:32:14]} 55. Kf3 {[%clk 0:18:15]}
55... Kg6 {[%clk 0:32:37]} 56. Be5 {[%clk 0:18:42]} 1-0

[Variant "Standard"]
[Site "Europe Echecs"]

[Event "Championnat du monde jeunes U12F"]
[Date "2024.11.22"]
[White "Sinkar, Anagha Aniket"]
[Black "Illes-Nagy, Nora"]
[WhiteElo "1723"]
[BlackElo "1803"]
[Round "7.11"]
[Result "1/2-1/2"]
[TimeControl "5400+30"]

1. e4 {[%clk 1:30:25]} 1... c5 {[%clk 1:30:56]} 2. c3 {[%clk 1:30:13]} 2... d5
{[%clk 1:31:19]} 3. exd5 {[%clk 1:30:08]} 3... Qxd5 {[%clk 1:31:42]} 4. d4
{[%clk 1:29:55]} 4... Nf6 {[%clk 1:31:58]} 5. Nf3 {[%clk 1:28:21]} 5... e6
{[%clk 1:31:53]} 6. Be3 {[%clk 1:27:26]} 6... cxd4 {[%clk 1:31:47]} 7. cxd4
{[%clk 1:25:43]} 7... Bb4+ {[%clk 1:32:05]} 8. Nc3 {[%clk 1:23:59]} 8... O-O
{[%clk 1:32:14]} 9. Bd3 {[%clk 1:22:53]} 9... b6 {[%clk 1:32:07]} 10. O-O {[%clk
1:21:53]} 10... Bxc3 {[%clk 1:32:24]} 11. bxc3 {[%clk 1:22:14]} 11... Ba6 {[%clk
1:32:43]} 12. Bxa6 {[%clk 1:14:51]} 12... Nxa6 {[%clk 1:32:35]} 13. Qa4 {[%clk
1:11:23]} 13... Qb7 {[%clk 1:27:51]} 14. c4 {[%clk 1:09:48]} 14... Rac8 {[%clk
1:25:51]} 15. Rfc1 {[%clk 1:07:30]} 15... Nb8 {[%clk 1:22:47]} 16. h3 {[%clk
0:56:19]} 16... h6 {[%clk 1:21:59]} 17. Rab1 {[%clk 0:55:31]} 17... Rfd8 {[%clk
1:18:54]} 18. Qb5 {[%clk 0:52:20]} 18... Qd7 {[%clk 1:07:39]} 19. a4 {[%clk
0:42:43]} 19... Nc6 {[%clk 1:03:50]} 20. Ne5 {[%clk 0:38:38]} 20... Nxe5 {[%clk
1:00:33]} 21. Qxe5 {[%clk 0:38:23]} 21... Qe7 {[%clk 0:50:25]} 22. a5 {[%clk
0:32:49]} 22... Nd7 {[%clk 0:35:47]} 23. Qh5 {[%clk 0:29:38]} 23... Rc6 {[%clk
0:33:13]} 24. Rb3 {[%clk 0:22:19]} 24... Rdc8 {[%clk 0:23:10]} 25. Bxh6 {[%clk
0:18:49]} 25... gxh6 {[%clk 0:18:26]} 26. Qxh6 {[%clk 0:18:44]} 26... Nf8 {[%clk
0:18:08]} 27. Rg3+ {[%clk 0:18:57]} 27... Ng6 {[%clk 0:18:24]} 28. h4 {[%clk
0:19:14]} 28... Qf8 {[%clk 0:17:41]} 29. Qg5 {[%clk 0:18:25]} 29... Kh7 {[%clk
0:16:12]} 30. axb6 {[%clk 0:14:56]} 30... axb6 {[%clk 0:16:25]} 31. Rcc3 {[%clk
0:12:17]} 31... Qh6 {[%clk 0:13:23]} 32. Qf6 {[%clk 0:11:25]} 32... Qg7 {[%clk
0:07:00]} 33. Qxg7+ {[%clk 0:11:20]} 33... Kxg7 {[%clk 0:07:26]} 34. h5 {[%clk
0:11:44]} 34... Rxc4 {[%clk 0:07:49]} 35. Rxc4 {[%clk 0:12:07]} 35... Rxc4
{[%clk 0:08:13]} 36. hxg6 {[%clk 0:12:22]} 36... fxg6 {[%clk 0:04:02]} 37. Rb3
{[%clk 0:12:42]} 37... Rc6 {[%clk 0:03:45]} 38. Kf1 {[%clk 0:12:46]} 38... Rd6
{[%clk 0:03:57]} 39. Rb4 {[%clk 0:13:10]} 39... Kf6 {[%clk 0:03:32]} 40. Ke2
{[%clk 0:13:33]} 40... b5 {[%clk 0:02:41]} 41. Rxb5 {[%clk 0:13:37]} 41... Rxd4
{[%clk 0:03:04]} 1/2-1/2

[Variant "Standard"]
[Site "Europe Echecs"]

[Event "Championnat du monde jeunes U12F"]
[Date "2024.11.22"]
[White "Jordan, Christina"]
[Black "Chovanec, Alice"]
[WhiteElo "1803"]
[BlackElo "1694"]
[Round "7.12"]
[Result "1-0"]
[TimeControl "5400+30"]

1. e4 {[%clk 1:30:57]} 1... c5 {[%clk 1:30:50]} 2. Nf3 {[%clk 1:31:14]} 2... e6
{[%clk 1:31:07]} 3. d4 {[%clk 1:31:20]} 3... cxd4 {[%clk 1:31:22]} 4. Nxd4
{[%clk 1:31:39]} 4... a6 {[%clk 1:31:41]} 5. a3 {[%clk 1:31:22]} 5... Qc7 {[%clk
1:31:25]} 6. c4 {[%clk 1:31:28]} 6... Nf6 {[%clk 1:31:17]} 7. Nc3 {[%clk
1:31:22]} 7... b6 {[%clk 1:31:13]} 8. g4 {[%clk 1:23:49]} 8... Bb7 {[%clk
1:29:54]} 9. Qf3 {[%clk 1:22:14]} 9... Bc5 {[%clk 1:28:13]} 10. Be3 {[%clk
1:20:24]} 10... Qe5 {[%clk 1:16:26]} 11. O-O-O {[%clk 1:13:39]} 11... Nxe4
{[%clk 0:46:41]} 12. Bg2 {[%clk 1:09:07]} 12... Nd6 {[%clk 0:42:59]} 13. Qh3
{[%clk 1:07:34]} 13... O-O {[%clk 0:32:08]} 14. b4 {[%clk 1:02:10]} 14... Bxd4
{[%clk 0:32:26]} 15. Bxd4 {[%clk 1:02:32]} 15... Qf4+ {[%clk 0:32:36]} 16. Be3
{[%clk 0:47:55]} 16... Qxc4 {[%clk 0:32:02]} 17. Kb2 {[%clk 0:46:21]} 17... Rc8
{[%clk 0:28:26]} 18. Rc1 {[%clk 0:45:51]} 18... a5 {[%clk 0:26:12]} 19. Bxb7
{[%clk 0:41:55]} 19... Nxb7 {[%clk 0:26:25]} 20. Qf3 {[%clk 0:41:37]} 20... Nc6
{[%clk 0:19:23]} 21. Na4 {[%clk 0:37:27]} 21... Qb5 {[%clk 0:17:28]} 22. Nxb6
{[%clk 0:37:05]} 22... axb4 {[%clk 0:13:30]} 23. a4 {[%clk 0:36:27]} 23... Qe5+
{[%clk 0:13:20]} 24. Kb1 {[%clk 0:34:55]} 24... Nba5 {[%clk 0:07:44]} 25. Rc5
{[%clk 0:31:12]} 25... d5 {[%clk 0:06:48]} 26. Nxc8 {[%clk 0:22:10]} 26... Rxc8
{[%clk 0:07:08]} 27. Qf4 {[%clk 0:22:16]} 27... Qxf4 {[%clk 0:06:50]} 28. Bxf4
{[%clk 0:22:43]} 28... Nb3 {[%clk 0:07:11]} 29. Rb5 {[%clk 0:20:35]} 29... Nbd4
{[%clk 0:07:18]} 30. Rb6 {[%clk 0:20:10]} 30... Ne2 {[%clk 0:06:55]} 31. Bd2
{[%clk 0:19:59]} 31... Nc3+ {[%clk 0:07:20]} 32. Bxc3 {[%clk 0:18:23]} 32...
bxc3 {[%clk 0:07:46]} 33. Kc2 {[%clk 0:18:33]} 33... d4 {[%clk 0:07:51]} 34.
Rhb1 {[%clk 0:18:33]} 34... Kf8 {[%clk 0:06:24]} 35. R6b5 {[%clk 0:17:12]} 35...
f6 {[%clk 0:06:11]} 36. Rd1 {[%clk 0:15:10]} 36... e5 {[%clk 0:06:28]} 37. f3
{[%clk 0:15:13]} 37... g6 {[%clk 0:06:20]} 38. a5 {[%clk 0:15:19]} 38... Rb8
{[%clk 0:04:47]} 39. Rxb8+ {[%clk 0:13:07]} 39... Nxb8 {[%clk 0:05:12]} 40. Rb1
{[%clk 0:13:33]} 40... Nc6 {[%clk 0:04:39]} 41. a6 {[%clk 0:13:40]} 41... f5
{[%clk 0:03:38]} 42. gxf5 {[%clk 0:13:52]} 42... gxf5 {[%clk 0:04:02]} 43. Rb6
{[%clk 0:14:15]} 43... Na7 {[%clk 0:03:48]} 44. Rf6+ {[%clk 0:13:28]} 44... Ke7
{[%clk 0:04:12]} 45. Rxf5 {[%clk 0:13:47]} 45... Ke6 {[%clk 0:04:07]} 46. Rh5
{[%clk 0:13:59]} 46... Nb5 {[%clk 0:04:07]} 47. Rxh7 {[%clk 0:13:08]} 47... Kf5
{[%clk 0:02:52]} 48. Rf7+ {[%clk 0:12:02]} 48... Kg5 {[%clk 0:03:13]} 49. Rb7
{[%clk 0:11:03]} 49... Na3+ {[%clk 0:03:38]} 50. Kc1 {[%clk 0:10:40]} 50... d3
{[%clk 0:03:51]} 51. a7 {[%clk 0:10:53]} 51... Nc4 {[%clk 0:03:07]} 52. Rd7
{[%clk 0:10:42]} 52... d2+ {[%clk 0:02:57]} 53. Kc2 {[%clk 0:11:04]} 53... Nb6
{[%clk 0:02:50]} 54. Rd8 {[%clk 0:11:13]} 54... Kf4 {[%clk 0:02:15]} 55. Kxc3
{[%clk 0:11:13]} 55... Kxf3 {[%clk 0:02:37]} 56. Kxd2 {[%clk 0:11:28]} 56... Kg4
{[%clk 0:02:53]} 57. a8=Q {[%clk 0:11:50]} 57... Nxa8 {[%clk 0:03:21]} 58. Rxa8
{[%clk 0:12:12]} 58... Kh3 {[%clk 0:03:46]} 59. Re8 {[%clk 0:12:30]} 59... Kxh2
{[%clk 0:04:09]} 60. Rxe5 {[%clk 0:12:55]} 60... Kg3 {[%clk 0:04:33]} 61. Ke3
{[%clk 0:13:09]} 61... Kg2 {[%clk 0:04:43]} 62. Rf5 {[%clk 0:13:10]} 62... Kh2
{[%clk 0:05:06]} 63. Rg5 {[%clk 0:13:34]} 63... Kh3 {[%clk 0:05:26]} 64. Kf3
{[%clk 0:13:54]} 64... Kh4 {[%clk 0:05:51]} 65. Rg1 {[%clk 0:14:13]} 65... Kh5
{[%clk 0:06:12]} 66. Kf4 {[%clk 0:14:39]} 66... Kh6 {[%clk 0:06:35]} 67. Kf5
{[%clk 0:15:07]} 67... Kh7 {[%clk 0:07:01]} 68. Kf6 {[%clk 0:15:33]} 68... Kh8
{[%clk 0:07:28]} 69. Kf7 {[%clk 0:15:59]} 69... Kh7 {[%clk 0:07:54]} 70. Rh1#
{[%clk 0:16:25]} 1-0

[Variant "Standard"]
[Site "Europe Echecs"]